[Event "Cracovia Festival-A 2023"]
[Site "Krakow"]
[Date "2023.12.29"]
[Round "3.39"]
[White "Lehocz, Jozsef Jr."]
[Black "Gierulski, Kamil"]
[Result "1/2-1/2"]
[ECO "B22"]
[WhiteElo "2116"]
[BlackElo "2223"]
[Annotator "ChessBase"]
[PlyCount "85"]
[EventDate "2023.12.24"]
[EventType "swiss"]
[EventCountry "POL"]
[SourceTitle "playchess.com"]
[Source "ChessBase"]
[SourceQuality "1"]
[TimeControl "40/5400+30:1800+30"]

1. e4 {[%emt 0:00:04]} c5 {[%emt 0:00:02]} 2. c3 {[%emt 0:00:42]} Nf6 {[%emt 0:00:03]} 3. e5 {[%emt 0:00:32]} Nd5 {[%emt 0:00:02]} 4. g3 {[%emt 0:00:30]} d6 {[%emt 0:00:03]} 5. exd6 {[%emt 0:00:10]} e6 {[%emt 0:00:04]} 6. Bg2 {[%emt 0:00:34]} Bxd6 {[%emt 0:00:05]} 7. Nf3 {[%emt 0:00:23]} Nc6 {[%emt 0:00:03]} 8. O-O {[%emt 0:00:22]} O-O {[%emt 0:00:02]} 9. d4 {[%emt 0:00:17]} cxd4 {[%emt 0:00:07]} 10. Nxd4 {[%emt 0:00:07]} Nxd4 {[%emt 0:00:09]} 11. Qxd4 {[%emt 0:00:19]} Qc7 {[%emt 0:00:07]} 12. Nd2 {[%emt 0:06:15]} Bd7 {[%emt 0:00:10]} 13. Ne4 {[%emt 0:13:00]} Be5 {[%emt 0:00:04]} 14. Qc5 {[%emt 0:01:33]} Bc6 {[%emt 0:00:07]} 15. f4 {[%emt 0:03:50]} b6 {[%emt 0:00:06]} 16. Qf2 {[%emt 0:03:17]} Nf6 {[%emt 0:02:02]} 17. Nxf6+ {[%emt 0:16:46]} Bxf6 {[%emt 0:00:12]} 18. Be3 {[%emt 0:01:26]} Rfd8 {[%emt 0:08:08]} 19. Rad1 {[%emt 0:04:54]} h5 {[%emt 0:03:30]} 20. Qe2 {[%emt 0:13:49]} Bxg2 {[%emt 0:01:20]} 21. Kxg2 {[%emt 0:01:18]} Qc6+ {[%emt 0:01:09]} 22. Qf3 {[%emt 0:01:38]} Qb5 {[%emt 0:01:32]} 23. Rf2 {[%emt 0:04:00]} Qc4 {[%emt 0:06:24]} 24. Rfd2 {[%emt 0:02:47]} Qxa2 {[%emt 0:12:50]} 25. Qxh5 {[%emt 0:00:28]} Rxd2+ {[%emt 0:04:12]} 26. Rxd2 {[%emt 0:00:12]} Rc8 {[%emt 0:01:06]} 27. Qb5 {[%emt 0:04:43]} g6 {[%emt 0:01:38]} 28. h4 {[%emt 0:04:16]} Kg7 {[%emt 0:01:06]} 29. Qb4 {[%emt 0:03:00]} Rc4 {[%emt 0:02:18]} 30. Qb5 {[%emt 0:02:48]} Re4 {[%emt 0:04:33]} 31. Qd3 {[%emt 0:00:23]} Ra4 {[%emt 0:01:58]} 32. b4 {[%emt 0:04:53]} Qb3 {[%emt 0:06:19]} 33. Bd4 {[%emt 0:00:39]} Qd5+ {[%emt 0:00:26]} 34. Qf3 {[%emt 0:00:37]} Qxf3+ {[%emt 0:05:40]} 35. Kxf3 {[%emt 0:00:02]} Bxd4 {[%emt 0:00:34]} 36. Rxd4 {[%emt 0:00:06]} Ra3 {[%emt 0:00:43]} 37. Rc4 {[%emt 0:00:26]} a5 {[%emt 0:00:44]} 38. bxa5 {[%emt 0:00:21]} bxa5 {[%emt 0:00:53]} 39. Rc7 {[%emt 0:00:49]} Kf6 {[%emt 0:00:22]} 40. Kg4 {[%emt 0:00:00]} a4 {[%emt 0:00:00]} 41. Ra7 {[%emt 0:07:48]} Ra1 {[%emt 0:03:06]} 42. c4 {[%emt 0:03:21]} a3 {[%emt 0:01:33]} 43. c5 {[%emt 0:02:50]} 1/2-1/2

[Event "Cracovia Festival-A 2023"]
[Site "Krakow"]
[Date "2023.12.29"]
[Round "3.40"]
[White "Jaskolka, Tomasz"]
[Black "Babiarz, Arkadiusz"]
[Result "0-1"]
[ECO "D26"]
[WhiteElo "2222"]
[BlackElo "2129"]
[Annotator "ChessBase"]
[PlyCount "150"]
[EventDate "2023.12.24"]
[EventType "swiss"]
[EventCountry "POL"]
[SourceTitle "playchess.com"]
[Source "ChessBase"]
[SourceQuality "1"]
[TimeControl "40/5400+30:1800+30"]

1. d4 {[%emt 0:00:03]} d5 {[%emt 0:00:04]} 2. c4 {[%emt 0:00:05]} e6 {[%emt 0:00:27]} 3. Nf3 {[%emt 0:00:16]} dxc4 {[%emt 0:01:59]} 4. e3 {[%emt 0:00:25]} Nf6 {[%emt 0:00:10]} 5. Bxc4 {[%emt 0:00:03]} a6 {[%emt 0:00:06]} 6. O-O {[%emt 0:00:25]} c5 {[%emt 0:00:12]} 7. Be2 {[%emt 0:03:37]} Nc6 {[%emt 0:01:16]} 8. dxc5 {[%emt 0:01:30]} Qxd1 {[%emt 0:02:19]} 9. Rxd1 {[%emt 0:00:03]} Bxc5 {[%emt 0:00:16]} 10. b3 {[%emt 0:00:40]} O-O {[%emt 0:06:15]} 11. Bb2 Nd5 {[%emt 0:03:42]} 12. Nbd2 {[%emt 0:04:39]} Rd8 {[%emt 0:03:39]} 13. Rac1 {[%emt 0:05:22]} Be7 {[%emt 0:00:32]} 14. Ne4 {[%emt 0:02:44]} Bd7 {[%emt 0:03:05]} 15. Nc5 {[%emt 0:02:27]} Bxc5 {[%emt 0:00:47]} 16. Rxc5 {[%emt 0:00:04]} Be8 {[%emt 0:00:49]} 17. Rc4 {[%emt 0:19:14]} f6 {[%emt 0:15:17]} 18. Nd4 {[%emt 0:08:17]} Nb6 {[%emt 0:11:03]} 19. Rcc1 {[%emt 0:02:27]} e5 {[%emt 0:03:21]} 20. Ne6 {[%emt 0:03:50]} Rxd1+ {[%emt 0:00:21]} 21. Rxd1 {[%emt 0:00:03]} Bf7 {[%emt 0:00:38]} 22. Nc5 {[%emt 0:01:00]} Rd8 {[%emt 0:21:05]} 23. Nxb7 {[%emt 0:04:03]} Rxd1+ {[%emt 0:00:07]} 24. Bxd1 {[%emt 0:00:02]} Nb4 {[%emt 0:06:06]} 25. Nc5 {[%emt 0:11:23]} Nxa2 {[%emt 0:00:06]} 26. Nxa6 {[%emt 0:00:04]} Kf8 {[%emt 0:00:10]} 27. Kf1 {[%emt 0:02:06]} Ke7 {[%emt 0:00:13]} 28. Ke1 {[%emt 0:01:22]} Kd7 {[%emt 0:01:17]} 29. Kd2 {[%emt 0:04:52]} Kc6 {[%emt 0:00:38]} 30. Ba3 {[%emt 0:00:57]} Nd5 {[%emt 0:01:26]} 31. Nc5 {[%emt 0:09:11]} Nac3 {[%emt 0:00:23]} 32. Bc2 {[%emt 0:09:12]} Nb5 {[%emt 0:00:17]} 33. Bxh7 {[%emt 0:00:15]} Nxa3 {[%emt 0:00:05]} 34. Ne4 {[%emt 0:00:59]} Nb5 {[%emt 0:02:00]} 35. g4 {[%emt 0:00:45]} g6 {[%emt 0:06:01]} 36. h4 {[%emt 0:00:50]} Nd6 {[%emt 0:00:22]} 37. Ng3 {[%emt 0:00:28]} Ne7 {[%emt 0:02:51]} 38. f4 {[%emt 0:00:43]} Bxb3 {[%emt 0:01:12]} 39. h5 {[%emt 0:03:49]} g5 {[%emt 0:03:32]} 40. fxe5 {[%emt 0:00:00]} fxe5 {[%emt 0:00:00]} 41. Bd3 {[%emt 0:11:12]} Ng8 {[%emt 0:03:16]} 42. Nf1 {[%emt 0:06:21]} Nh6 {[%emt 0:00:44]} 43. Nh2 {[%emt 0:00:20]} e4 {[%emt 0:01:24]} 44. Be2 {[%emt 0:00:43]} Be6 {[%emt 0:02:12]} 45. Ke1 {[%emt 0:03:55]} Kc5 {[%emt 0:00:47]} 46. Kf2 {[%emt 0:00:16]} Kb4 {[%emt 0:00:24]} 47. Nf1 {[%emt 0:01:47]} Kc3 {[%emt 0:00:47]} 48. Ng3 {[%emt 0:00:09]} Bxg4 {[%emt 0:01:26]} 49. Bf1 {[%emt 0:01:16]} Bf3 {[%emt 0:04:04]} 50. Bh3 {[%emt 0:01:22]} Ndf7 {[%emt 0:00:30]} 51. Bc8 {[%emt 0:00:56]} Ne5 {[%emt 0:00:14]} 52. Nf1 {[%emt 0:01:00]} Bxh5 {[%emt 0:00:48]} 53. Ba6 {[%emt 0:03:10]} Bf7 {[%emt 0:00:52]} 54. Bb7 {[%emt 0:00:17]} Kd3 {[%emt 0:00:38]} 55. Ng3 {[%emt 0:00:28]} Nhg4+ {[%emt 0:00:18]} 56. Kg1 {[%emt 0:00:09]} Bg6 {[%emt 0:00:22]} 57. Nf1 {[%emt 0:00:58]} Nf3+ {[%emt 0:00:29]} 58. Kh1 {[%emt 0:00:15]} Ke2 {[%emt 0:00:40]} 59. Ng3+ {[%emt 0:00:58]} Kxe3 {[%emt 0:00:07]} 60. Kg2 {[%emt 0:00:29]} Nd2 {[%emt 0:01:50]} 61. Kh3 {[%emt 0:01:13]} Ne5 {[%emt 0:00:30]} 62. Kg2 {[%emt 0:00:12]} Kd3 {[%emt 0:00:45]} 63. Ba6+ {[%emt 0:00:39]} Ndc4 {[%emt 0:00:26]} 64. Kf2 {[%emt 0:01:36]} e3+ {[%emt 0:00:45]} 65. Kg1 {[%emt 0:01:18]} Kd2 {[%emt 0:00:37]} 66. Kg2 {[%emt 0:02:09]} e2 {[%emt 0:01:35]} 67. Nxe2 {[%emt 0:00:02]} Kxe2 {[%emt 0:00:05]} 68. Bb7 {[%emt 0:00:23]} Nd6 {[%emt 0:00:27]} 69. Ba6+ {[%emt 0:00:31]} Ke3 {[%emt 0:00:06]} 70. Kg3 {[%emt 0:00:26]} Ne4+ {[%emt 0:00:18]} 71. Kg2 {[%emt 0:00:14]} Bh5 {[%emt 0:00:20]} 72. Bb7 {[%emt 0:00:25]} Bf3+ {[%emt 0:00:12]} 73. Kh2 {[%emt 0:00:28]} Kf2 {[%emt 0:00:25]} 74. Bc8 {[%emt 0:01:20]} Bg2 {[%emt 0:00:11]} 75. Bd7 {[%emt 0:00:28]} Nf3# 0-1

[Event "Cracovia Festival-A 2023"]
[Site "Krakow"]
[Date "2023.12.29"]
[Round "3.41"]
[White "Warchol, Kamil"]
[Black "Wojdak, Jan"]
[Result "1/2-1/2"]
[ECO "B47"]
[WhiteElo "2108"]
[BlackElo "2219"]
[Annotator "ChessBase"]
[PlyCount "143"]
[EventDate "2023.12.24"]
[EventType "swiss"]
[EventCountry "POL"]
[SourceTitle "playchess.com"]
[Source "ChessBase"]
[SourceQuality "1"]
[TimeControl "40/5400+30:1800+30"]

1. e4 {[%emt 0:00:07]} c5 {[%emt 0:01:03]} 2. Nf3 {[%emt 0:00:07]} e6 {[%emt 0:00:05]} 3. d4 {[%emt 0:00:16]} cxd4 {[%emt 0:00:04]} 4. Nxd4 {[%emt 0:00:07]} Nc6 {[%emt 0:00:06]} 5. Nc3 {[%emt 0:00:10]} Qc7 {[%emt 0:00:06]} 6. g3 {[%emt 0:00:18]} a6 {[%emt 0:00:31]} 7. Bg2 {[%emt 0:00:15]} Nf6 {[%emt 0:01:10]} 8. O-O {[%emt 0:00:34]} d6 {[%emt 0:01:08]} 9. Re1 {[%emt 0:01:21]} Bd7 {[%emt 0:03:11]} 10. Nxc6 {[%emt 0:06:20]} Bxc6 {[%emt 0:00:15]} 11. Nd5 {[%emt 0:01:16]} Qd8 {[%emt 0:13:45]} 12. Be3 {[%emt 0:12:25]} Nd7 {[%emt 0:06:09]} 13. c4 {[%emt 0:07:47]} Be7 {[%emt 0:08:57]} 14. Qd4 {[%emt 0:14:44]} Bxd5 {[%emt 0:06:16]} 15. cxd5 {[%emt 0:07:32]} e5 {[%emt 0:01:01]} 16. Qb4 {[%emt 0:01:20]} b6 {[%emt 0:02:55]} 17. Rac1 {[%emt 0:06:58]} Nc5 {[%emt 0:00:20]} 18. Qc4 {[%emt 0:03:37]} a5 {[%emt 0:04:30]} 19. Qb5+ {[%emt 0:02:10]} Kf8 {[%emt 0:02:14]} 20. b3 {[%emt 0:04:55]} Rb8 {[%emt 0:03:01]} 21. a3 {[%emt 0:01:47]} Qe8 {[%emt 0:00:56]} 22. Qxe8+ {[%emt 0:01:27]} Kxe8 {[%emt 0:03:45]} 23. Rc3 {[%emt 0:02:01]} a4 {[%emt 0:08:55]} 24. b4 {[%emt 0:03:31]} Nb3 {[%emt 0:00:03]} 25. Bf1 {[%emt 0:02:14]} b5 {[%emt 0:05:30]} 26. Rc7 {[%emt 0:01:37]} Bd8 {[%emt 0:05:22]} 27. Rc6 {[%emt 0:01:45]} Ke7 {[%emt 0:01:21]} 28. f4 {[%emt 0:01:03]} f6 {[%emt 0:01:27]} 29. Bh3 {[%emt 0:01:45]} h6 {[%emt 0:04:38]} 30. Rf1 {[%emt 0:01:56]} Rf8 {[%emt 0:07:13]} 31. fxe5 {[%emt 0:03:26]} fxe5 {[%emt 0:00:03]} 32. Rxf8 {[%emt 0:00:39]} Kxf8 {[%emt 0:00:04]} 33. Rxd6 {[%emt 0:00:41]} Bg5 {[%emt 0:01:09]} 34. Bxg5 {[%emt 0:05:39]} hxg5 {[%emt 0:00:04]} 35. Rc6 {[%emt 0:01:25]} Nd2 {[%emt 0:01:09]} 36. Bf5 {[%emt 0:01:03]} Nc4 {[%emt 0:04:57]} 37. d6 {[%emt 0:01:08]} Rd8 {[%emt 0:00:50]} 38. d7 {[%emt 0:00:41]} Nxa3 {[%emt 0:00:38]} 39. Rc5 {[%emt 0:00:48]} Nc4 {[%emt 0:02:02]} 40. Rxb5 {[%emt 0:00:00]} a3 {[%emt 0:00:00]} 41. Rb7 {[%emt 0:06:08]} Ke7 {[%emt 0:14:54]} 42. Ra7 {[%emt 0:02:34]} Rb8 {[%emt 0:03:54]} 43. b5 {[%emt 0:04:02]} Ne3 {[%emt 0:01:47]} 44. Rxa3 {[%emt 0:06:32]} Nxf5 {[%emt 0:00:06]} 45. exf5 {[%emt 0:00:25]} Rxb5 {[%emt 0:01:21]} 46. Rd3 {[%emt 0:05:49]} Kd8 {[%emt 0:00:04]} 47. Kf2 {[%emt 0:04:00]} e4 {[%emt 0:00:09]} 48. Rd4 {[%emt 0:00:50]} Rxf5+ {[%emt 0:02:22]} 49. Ke3 {[%emt 0:00:31]} Rf3+ {[%emt 0:03:47]} 50. Kxe4 {[%emt 0:00:15]} Rf2 {[%emt 0:00:04]} 51. Ke5 {[%emt 0:03:55]} Rxh2 {[%emt 0:01:33]} 52. Kf5 {[%emt 0:00:55]} Rh6 {[%emt 0:03:04]} 53. Kxg5 {[%emt 0:00:12]} Rf6 {[%emt 0:00:28]} 54. g4 {[%emt 0:02:37]} Ra6 {[%emt 0:00:57]} 55. Rd5 {[%emt 0:00:08]} Rb6 {[%emt 0:00:23]} 56. Kf5 {[%emt 0:00:22]} Rf6+ {[%emt 0:00:19]} 57. Ke5 {[%emt 0:00:45]} Rf7 {[%emt 0:01:16]} 58. Ke6 {[%emt 0:00:56]} Rf6+ {[%emt 0:00:06]} 59. Ke5 {[%emt 0:00:03]} Rf7 {[%emt 0:00:07]} 60. Ke4 {[%emt 0:01:55]} Rxd7 {[%emt 0:02:39]} 61. Rxd7+ {[%emt 0:00:33]} Kxd7 {[%emt 0:00:15]} 62. Kf5 {[%emt 0:00:07]} Ke7 {[%emt 0:00:05]} 63. Kg6 {[%emt 0:00:13]} Kf8 {[%emt 0:00:03]} 64. Kh7 {[%emt 0:00:14]} g5 {[%emt 0:00:05]} 65. Kg6 {[%emt 0:00:05]} Kg8 {[%emt 0:00:06]} 66. Kxg5 {[%emt 0:00:04]} Kg7 {[%emt 0:00:03]} 67. Kf5 {[%emt 0:00:08]} Kf7 {[%emt 0:00:05]} 68. g5 {[%emt 0:00:03]} Kg7 {[%emt 0:00:07]} 69. g6 {[%emt 0:00:03]} Kg8 {[%emt 0:00:05]} 70. Kf6 {[%emt 0:00:02]} Kf8 {[%emt 0:00:06]} 71. g7+ {[%emt 0:00:02]} Kg8 {[%emt 0:00:03]} 72. Kg6 {[%emt 0:00:02]} 1/2-1/2

[Event "Cracovia Festival-A 2023"]
[Site "Krakow"]
[Date "2023.12.29"]
[Round "3.42"]
[White "Meers, Hubert"]
[Black "Bilczewski, Kacper"]
[Result "1/2-1/2"]
[ECO "C09"]
[WhiteElo "2218"]
[BlackElo "2125"]
[Annotator "ChessBase"]
[PlyCount "45"]
[EventDate "2023.12.24"]
[EventType "swiss"]
[EventCountry "POL"]
[SourceTitle "playchess.com"]
[Source "ChessBase"]
[SourceQuality "1"]
[TimeControl "40/5400+30:1800+30"]

1. e4 {[%emt 0:12:03]} e6 {[%emt 0:00:02]} 2. d4 {[%emt 0:00:05]} d5 {[%emt 0:00:04]} 3. Nd2 {[%emt 0:00:03]} c5 {[%emt 0:00:05]} 4. Ngf3 {[%emt 0:00:03]} Nc6 {[%emt 0:00:39]} 5. exd5 {[%emt 0:00:07]} exd5 {[%emt 0:00:31]} 6. Bb5 {[%emt 0:00:04]} Bd6 {[%emt 0:00:18]} 7. O-O {[%emt 0:00:06]} Nge7 {[%emt 0:00:10]} 8. dxc5 {[%emt 0:01:09]} Bxc5 {[%emt 0:00:11]} 9. Nb3 {[%emt 0:00:23]} Bd6 {[%emt 0:01:42]} 10. h3 {[%emt 0:03:24]} O-O {[%emt 0:01:01]} 11. c3 {[%emt 0:00:15]} Bc7 {[%emt 0:02:11]} 12. Be3 {[%emt 0:08:50]} Bf5 {[%emt 0:13:12]} 13. Bd3 {[%emt 0:03:34]} Re8 {[%emt 0:14:36]} 14. Qc2 {[%emt 0:02:05]} Bg6 {[%emt 0:05:30]} 15. Nbd4 {[%emt 0:05:13]} a6 {[%emt 0:01:03]} 16. Nxc6 Nxc6 17. Bf5 {[%emt 0:02:50]} Qd6 {[%emt 0:01:34]} 18. Bxg6 {[%emt 0:01:21]} hxg6 {[%emt 0:00:09]} 19. Rad1 {[%emt 0:06:53]} Rad8 {[%emt 0:07:58]} 20. Bd4 {[%emt 0:09:46]} Re4 {[%emt 0:05:54]} 21. g3 {[%emt 0:01:56]} Rde8 {[%emt 0:03:05]} 22. Qd3 {[%emt 0:06:46]} Nxd4 {[%emt 0:07:29]} 23. cxd4 {[%emt 0:08:00]} 1/2-1/2

[Event "Cracovia Festival-A 2023"]
[Site "Krakow"]
[Date "2023.12.29"]
[Round "3.43"]
[White "Selbes, Tamer Tarik"]
[Black "Zarnowski, Krzysztof"]
[Result "1/2-1/2"]
[ECO "A06"]
[WhiteElo "2185"]
[BlackElo "2114"]
[Annotator "ChessBase"]
[PlyCount "179"]
[EventDate "2023.12.24"]
[EventType "swiss"]
[EventCountry "POL"]
[SourceTitle "playchess.com"]
[Source "ChessBase"]
[SourceQuality "1"]
[TimeControl "40/5400+30:1800+30"]

1. Nf3 {[%emt 0:10:40]} d5 {[%emt 0:01:54]} 2. c4 {[%emt 0:03:38]} c6 {[%emt 0:00:24]} 3. g3 {[%emt 0:00:41]} Nf6 {[%emt 0:00:09]} 4. Bg2 {[%emt 0:00:07]} Bf5 {[%emt 0:00:39]} 5. O-O {[%emt 0:01:15]} e6 {[%emt 0:00:20]} 6. d4 {[%emt 0:02:57]} h6 {[%emt 0:01:06]} 7. Nc3 {[%emt 0:00:50]} Nbd7 {[%emt 0:00:56]} 8. cxd5 {[%emt 0:03:47]} exd5 {[%emt 0:05:56]} 9. Ne5 {[%emt 0:10:07]} Be7 {[%emt 0:05:04]} 10. Qb3 {[%emt 0:24:34]} Qb6 {[%emt 0:01:58]} 11. Nxd7 {[%emt 0:00:06]} Bxd7 {[%emt 0:09:48]} 12. Qxb6 {[%emt 0:03:58]} axb6 {[%emt 0:00:09]} 13. f3 {[%emt 0:00:24]} b5 {[%emt 0:09:46]} 14. e4 {[%emt 0:00:55]} b4 {[%emt 0:01:00]} 15. Ne2 {[%emt 0:02:55]} dxe4 {[%emt 0:00:49]} 16. fxe4 {[%emt 0:00:05]} Be6 {[%emt 0:01:05]} 17. Nf4 {[%emt 0:05:16]} Bc4 {[%emt 0:05:43]} 18. Re1 {[%emt 0:00:52]} Rxa2 {[%emt 0:08:08]} 19. Rxa2 {[%emt 0:01:27]} Bxa2 {[%emt 0:00:03]} 20. Bd2 {[%emt 0:02:17]} Bc4 {[%emt 0:12:34]} 21. Rc1 {[%emt 0:01:18]} Bb5 {[%emt 0:02:41]} 22. e5 {[%emt 0:01:42]} Nd7 {[%emt 0:02:01]} 23. e6 {[%emt 0:04:52]} Nf6 {[%emt 0:01:10]} 24. d5 {[%emt 0:02:02]} c5 {[%emt 0:00:59]} 25. Re1 {[%emt 0:08:24]} Bd6 {[%emt 0:04:53]} 26. h4 {[%emt 0:06:20]} g5 {[%emt 0:02:55]} 27. hxg5 {[%emt 0:00:44]} hxg5 {[%emt 0:00:03]} 28. Nh3 {[%emt 0:00:13]} Bxg3 {[%emt 0:04:24]} 29. Ra1 {[%emt 0:01:31]} Ke7 {[%emt 0:03:19]} 30. Bxg5 {[%emt 0:00:16]} Be5 {[%emt 0:02:23]} 31. Be3 {[%emt 0:00:16]} b6 {[%emt 0:05:46]} 32. Ra7+ {[%emt 0:00:32]} Kd6 {[%emt 0:00:03]} 33. Ng5 {[%emt 0:01:20]} Bh2+ {[%emt 0:00:55]} 34. Kf2 {[%emt 0:00:04]} Ng4+ {[%emt 0:00:31]} 35. Ke1 {[%emt 0:00:04]} Bg3+ {[%emt 0:00:46]} 36. Kd2 {[%emt 0:00:04]} Ne5 {[%emt 0:01:37]} 37. Ne4+ {[%emt 0:00:38]} Kxd5 {[%emt 0:00:04]} 38. Nxg3+ {[%emt 0:00:38]} Kxe6 {[%emt 0:00:08]} 39. Bf1 {[%emt 0:01:29]} Rh2+ {[%emt 0:00:42]} 40. Kd1 {[%emt 0:00:00]} Bxf1 {[%emt 0:00:00]} 41. Nxf1 {[%emt 0:00:31]} Rxb2 {[%emt 0:06:44]} 42. Ra6 {[%emt 0:03:17]} Kd5 {[%emt 0:03:28]} 43. Rxb6 {[%emt 0:04:29]} c4 {[%emt 0:08:17]} 44. Rb5+ {[%emt 0:02:49]} Ke6 {[%emt 0:03:16]} 45. Bd4 {[%emt 0:01:56]} Rb1+ {[%emt 0:00:19]} 46. Ke2 {[%emt 0:00:03]} Nc6 {[%emt 0:01:00]} 47. Bg7 {[%emt 0:00:45]} f6 {[%emt 0:06:32]} 48. Rb6 {[%emt 0:00:59]} Rb2+ {[%emt 0:00:59]} 49. Ke1 {[%emt 0:01:21]} Kd6 {[%emt 0:02:59]} 50. Bxf6 {[%emt 0:00:10]} c3 {[%emt 0:02:56]} 51. Ne3 {[%emt 0:02:50]} Kc5 {[%emt 0:00:46]} 52. Ra6 {[%emt 0:07:55]} Rb1+ {[%emt 0:03:17]} 53. Ke2 {[%emt 0:00:07]} Rb2+ {[%emt 0:00:44]} 54. Kd1 {[%emt 0:01:36]} Rf2 {[%emt 0:00:32]} 55. Bg7 {[%emt 0:03:27]} Rf7 {[%emt 0:00:12]} 56. Bh8 {[%emt 0:00:52]} Rf8 {[%emt 0:00:56]} 57. Bg7 {[%emt 0:00:14]} Rg8 {[%emt 0:00:18]} 58. Nf5 {[%emt 0:01:14]} Rd8+ {[%emt 0:00:26]} 59. Kc1 {[%emt 0:00:14]} Kb5 {[%emt 0:00:27]} 60. Ra1 {[%emt 0:03:47]} Rd5 {[%emt 0:00:28]} 61. Ne3 {[%emt 0:00:37]} Rg5 {[%emt 0:00:09]} 62. Bf6 {[%emt 0:02:07]} Rg6 {[%emt 0:00:21]} 63. Bh8 {[%emt 0:00:22]} Rg1+ {[%emt 0:00:15]} 64. Nd1 {[%emt 0:00:04]} Na5 {[%emt 0:02:40]} 65. Kc2 {[%emt 0:00:06]} Rg2+ {[%emt 0:00:26]} 66. Kd3 {[%emt 0:00:25]} Rd2+ {[%emt 0:01:22]} 67. Ke4 {[%emt 0:01:07]} c2 {[%emt 0:00:26]} 68. Ne3 {[%emt 0:01:10]} Nb3 {[%emt 0:00:40]} 69. Nxc2 {[%emt 0:00:18]} Nxa1 {[%emt 0:00:11]} 70. Nxa1 {[%emt 0:00:04]} Kc4 {[%emt 0:00:12]} 71. Ke3 {[%emt 0:00:06]} Ra2 {[%emt 0:00:28]} 72. Bg7 {[%emt 0:00:07]} Rg2 {[%emt 0:01:01]} 73. Bf6 {[%emt 0:00:07]} Ra2 {[%emt 0:00:35]} 74. Bg7 {[%emt 0:00:05]} Ra7 {[%emt 0:00:42]} 75. Bf6 {[%emt 0:00:11]} b3 {[%emt 0:00:28]} 76. Kd2 {[%emt 0:02:10]} Rf7 {[%emt 0:00:11]} 77. Be5 {[%emt 0:00:11]} Rf5 {[%emt 0:00:18]} 78. Bg7 {[%emt 0:00:11]} Rf2+ {[%emt 0:00:33]} 79. Kc1 {[%emt 0:00:39]} Rf1+ {[%emt 0:00:03]} 80. Kb2 {[%emt 0:00:15]} Rf2+ {[%emt 0:00:28]} 81. Kb1 {[%emt 0:00:12]} Kb4 {[%emt 0:00:44]} 82. Be5 {[%emt 0:00:57]} Re2 {[%emt 0:00:26]} 83. Bg7 {[%emt 0:00:13]} Ka3 {[%emt 0:01:19]} 84. Bf8+ {[%emt 0:00:06]} Ka4 {[%emt 0:00:02]} 85. Bg7 {[%emt 0:00:11]} Kb4 {[%emt 0:00:36]} 86. Bf8+ {[%emt 0:00:20]} Kc3 {[%emt 0:00:26]} 87. Bg7+ {[%emt 0:00:04]} Kc4 {[%emt 0:00:03]} 88. Kc1 {[%emt 0:00:58]} b2+ {[%emt 0:01:12]} 89. Bxb2 {[%emt 0:00:07]} Rxb2 {[%emt 0:00:02]} 90. Kxb2 {[%emt 0:00:05]} 1/2-1/2

[Event "Cracovia Festival-A 2023"]
[Site "Krakow"]
[Date "2023.12.29"]
[Round "3.44"]
[White "Szczurek, Krzysztof"]
[Black "van der Merwe, Alexander"]
[Result "1/2-1/2"]
[ECO "A05"]
[WhiteElo "2175"]
[BlackElo "2113"]
[Annotator "ChessBase"]
[PlyCount "83"]
[EventDate "2023.12.24"]
[EventType "swiss"]
[EventCountry "POL"]
[SourceTitle "playchess.com"]
[Source "ChessBase"]
[SourceQuality "1"]
[TimeControl "40/5400+30:1800+30"]

1. Nf3 {[%emt 0:00:03]} Nf6 {[%emt 0:00:12]} 2. b3 {[%emt 0:00:06]} g6 {[%emt 0:01:02]} 3. Bb2 {[%emt 0:00:12]} Bg7 {[%emt 0:00:13]} 4. c4 {[%emt 0:00:09]} O-O {[%emt 0:01:22]} 5. e3 {[%emt 0:00:20]} c6 {[%emt 0:02:50]} 6. d4 {[%emt 0:01:45]} d5 {[%emt 0:00:52]} 7. Bd3 {[%emt 0:01:01]} a5 {[%emt 0:07:42]} 8. Nc3 {[%emt 0:01:16]} Na6 {[%emt 0:13:23]} 9. O-O {[%emt 0:13:52]} Nb4 {[%emt 0:01:03]} 10. Bb1 {[%emt 0:01:16]} c5 {[%emt 0:09:30]} 11. dxc5 {[%emt 0:19:02]} dxc4 {[%emt 0:01:13]} 12. Qxd8 {[%emt 0:09:08]} Rxd8 {[%emt 0:00:09]} 13. Nd4 {[%emt 0:00:10]} Nd7 {[%emt 0:09:56]} 14. Na4 {[%emt 0:01:15]} Rb8 {[%emt 0:17:32]} 15. a3 {[%emt 0:06:46]} Na6 {[%emt 0:06:41]} 16. c6 {[%emt 0:10:43]} Ne5 {[%emt 0:00:12]} 17. bxc4 {[%emt 0:13:23]} Nxc6 {[%emt 0:02:32]} 18. Nxc6 {[%emt 0:00:58]} bxc6 {[%emt 0:00:02]} 19. Bxg7 {[%emt 0:00:23]} Kxg7 {[%emt 0:00:01]} 20. Be4 {[%emt 0:00:22]} Be6 {[%emt 0:01:04]} 21. Rac1 {[%emt 0:01:05]} c5 {[%emt 0:01:15]} 22. Bc6 {[%emt 0:02:15]} Bd7 {[%emt 0:02:50]} 23. Bxd7 {[%emt 0:01:19]} Rxd7 {[%emt 0:00:03]} 24. Rc3 {[%emt 0:00:07]} e6 {[%emt 0:02:40]} 25. g3 {[%emt 0:00:29]} Kf6 {[%emt 0:01:10]} 26. Kg2 {[%emt 0:00:11]} Ke7 {[%emt 0:00:35]} 27. Kf3 {[%emt 0:01:13]} Rdb7 {[%emt 0:01:41]} 28. Rd1 {[%emt 0:01:14]} Rb3 {[%emt 0:00:48]} 29. Rcd3 {[%emt 0:00:52]} Rxd3 {[%emt 0:02:24]} 30. Rxd3 {[%emt 0:00:06]} Rb1 {[%emt 0:05:11]} 31. Ke2 {[%emt 0:03:03]} h5 {[%emt 0:01:33]} 32. h4 {[%emt 0:00:21]} Rb7 {[%emt 0:00:53]} 33. Kd2 {[%emt 0:01:08]} Rd7 {[%emt 0:01:14]} 34. Nc3 {[%emt 0:00:18]} Rb7 {[%emt 0:00:42]} 35. Kc2 {[%emt 0:00:09]} Nb8 {[%emt 0:05:20]} 36. f4 {[%emt 0:01:26]} f5 {[%emt 0:00:42]} 37. Nb5 {[%emt 0:03:05]} Nd7 {[%emt 0:00:52]} 38. Rb3 {[%emt 0:04:45]} Rb6 {[%emt 0:00:13]} 39. Nc3 {[%emt 0:01:04]} Kd6 {[%emt 0:00:35]} 40. Nb5+ {[%emt 0:00:00]} Ke7 {[%emt 0:00:00]} 41. Nc3 {[%emt 0:03:55]} Kd6 {[%emt 0:04:28]} 42. Nb5+ {[%emt 0:00:44]} 1/2-1/2